[Event "Romanian Superliga 2024"]
[Site "Mamaia"]
[Date "2024.10.03"]
[Round "6.24"]
[White "Codru, Raul Cristian"]
[Black "Tudor, Henry Edward"]
[Result "0-1"]
[ECO "E35"]
[WhiteElo "1786"]
[BlackElo "2347"]
[Annotator "TA"]
[PlyCount "50"]
[EventDate "2024.09.26"]
[EventType "team-tourn"]
[EventCountry "ROU"]
[SourceTitle "playchess.com"]
[Source "ChessBase"]
[SourceQuality "1"]
[TimeControl "40/5400+30:1800+30"]

{[%evp 12,50,25,18,22,27,29,31,25,15,27,34,15,0,22,0,10,-17,-20,-61,-47,-45,8,-43,-43,-195,-199,-224,-247,-361,-363,-474,-451,-1715,-1635,-1825,-1769,-29985,-29986,-29986,-29987]} 1. d4 {[%emt 0:00:03]} Nf6 {[%emt 0:00:55]} 2. c4 {[%emt 0:00:14]} e6 {[%emt 0:00:04]} 3. Nc3 {[%emt 0:00:04]} Bb4 {[%emt 0:00:09]} 4. Qc2 {[%emt 0:00:05]} d5 {[%emt 0:00:06]} 5. cxd5 {[%emt 0:01:14]} exd5 {[%emt 0:00:08]} 6. Bg5 {[%emt 0:00:56][%cal Bc1g5,Bg5h4,Bh4g3][%mdl 32]} h6 {[%emt 0:00:08]} 7. Bh4 {[%emt 0:01:13]} g5 {[%emt 0:00:12]} 8. Bg3 {[%emt 0:00:07]} Ne4 {[%emt 0:00:07]} 9. e3 {[%emt 0:04:32]} h5 {[%emt 0:00:19] White is slightly better.} 10. f3 {[%emt 0:05:20]} Nxg3 {[%emt 0:00:29]} 11. hxg3 {[%emt 0:00:02]} Nc6 {[%emt 0:02:26]} 12. a3 {[%emt 0:10:27]} Bxc3+ {[%emt 0:12:56]} 13. Qxc3 {[%emt 0:00:21]} Qd6 {[%emt 0:00:09]} 14. Ne2 {[%emt 0:07:48]} Bd7 {[%emt 0:06:35]} 15. g4 {[%emt 0:11:27]} h4 {[%emt 0:01:56]} 16. Rc1 {[%emt 0:03:05]} b6 {[%emt 0:13:25] Against Qc5} (16... O-O-O $15) 17. Kf2 {[%emt 0:16:50]} (17. g3 $11) 17... O-O-O $15 {[%emt 0:08:11]} 18. b4 $2 {[%emt 0:08:53] [#] Now White is beyond hope.} (18. g3 $1 $15) 18... Ne7 $19 {[%emt 0:06:32]} 19. Qd3 {[%emt 0:05:26]} Kb8 {[%emt 0:11:03]} 20. Nc3 {[%emt 0:09:59]} (20. Kg1 $142) 20... f5 {[%emt 0:06:12]} 21. gxf5 {[%emt 0:02:18]} Nxf5 {[%emt 0:01:08]} 22. Nb5 {[%emt 0:03:32]} (22. e4 $142 dxe4 (22... Ng3 $2 23. e5 $17) 23. Nxe4) 22... Qg3+ {[%emt 0:02:11]} 23. Kg1 {[%emt 0:01:12]} h3 {[%emt 0:00:35] [#] ( -> ...hxg2)} 24. Rh2 {[%emt 0:00:57]} Nh4 {[%emt 0:00:24]} 25. Qe2 {[%emt 0:02:20]} hxg2 {[%emt 0:00:13] Weighted Error Value: White=1.14/Black=0.05 (flawless) .  Mistake:       	White=4     	Black=1      Inaccurate:     	White=3     	---        OK:         	White=4     	Black=10     Best:        	---       	Black=2} 0-1

[Event "Romanian Superliga 2024"]
[Site "Mamaia"]
[Date "2024.10.03"]
[Round "6.25"]
[White "Theodorou, Nikolas"]
[Black "Kantor, Gergely"]
[Result "1/2-1/2"]
[ECO "E08"]
[WhiteElo "2619"]
[BlackElo "2537"]
[Annotator "RC"]
[PlyCount "91"]
[EventDate "2024.09.26"]
[EventType "team-tourn"]
[EventCountry "ROU"]
[SourceTitle "playchess.com"]
[Source "ChessBase"]
[SourceQuality "1"]
[TimeControl "40/5400+30:1800+30"]

1. d4 {[%emt 0:00:21]} Nf6 {[%emt 0:02:10]} 2. c4 {[%emt 0:00:06]} e6 {[%emt 0:00:14]} 3. Nf3 {[%emt 0:00:06]} d5 {[%emt 0:00:04]} 4. g3 {[%emt 0:00:04]} Bb4+ {[%emt 0:00:34]} 5. Bd2 {[%emt 0:00:07]} Be7 {[%emt 0:00:03]} 6. Bg2 {[%emt 0:00:07]} O-O {[%emt 0:00:15]} 7. O-O {[%emt 0:00:07]} c6 {[%emt 0:00:13]} 8. Qc2 {[%emt 0:00:08]} b6 {[%emt 0:01:03]} 9. Bf4 {[%emt 0:02:05]} Bb7 {[%emt 0:00:33]} 10. Nbd2 {[%emt 0:02:30]} Nbd7 {[%emt 0:02:34]} 11. e4 {[%emt 0:00:24]} dxc4 {[%emt 0:00:06]} 12. Nxc4 {[%emt 0:02:59]} c5 {[%emt 0:00:09]} 13. Rfe1 {[%emt 0:01:47]} cxd4 {[%emt 0:02:37]} 14. Nd6 {[%emt 0:00:45]} Bxd6 {[%emt 0:00:17]} 15. Bxd6 {[%emt 0:00:03]} d3 {[%emt 0:01:12]} 16. Qxd3 {[%emt 0:04:15]} Bxe4 {[%emt 0:00:40]} 17. Qd4 {[%emt 0:02:21]} e5 {[%emt 0:00:43]} 18. Nxe5 {[%emt 0:02:00]} Nxe5 {[%emt 0:01:38]} 19. Bxe5 {[%emt 0:03:20]} Bxg2 {[%emt 0:06:10]} 20. Kxg2 {[%emt 0:00:33]} Qxd4 {[%emt 0:08:33]} 21. Bxd4 {[%emt 0:00:03]} Nd5 {[%emt 0:08:03]} 22. Red1 {[%emt 0:32:27]} Rfd8 {[%emt 0:03:49]} 23. Rd2 {[%emt 0:01:54]} Rd7 {[%emt 0:04:45]} 24. Rad1 {[%emt 0:00:15]} Rad8 {[%emt 0:08:22]} 25. Kf3 {[%emt 0:07:21]} f6 {[%emt 0:06:43]} 26. Be3 {[%emt 0:02:35]} Kf7 {[%emt 0:01:54]} 27. Rd4 {[%emt 0:05:41]} h5 {[%emt 0:04:45]} 28. h3 {[%emt 0:02:45]} Ke6 {[%emt 0:02:55]} 29. Re4+ {[%emt 0:01:23]} Kf7 {[%emt 0:00:29]} 30. Red4 {[%emt 0:00:06]} Ke6 {[%emt 0:00:11]} 31. g4 {[%emt 0:04:23]} hxg4+ {[%emt 0:02:42]} 32. hxg4 {[%emt 0:00:03]} Nxe3 {[%emt 0:15:04]} 33. Rxd7 {[%emt 0:00:06]} Rxd7 {[%emt 0:00:04]} 34. Rxd7 {[%emt 0:00:05]} Kxd7 {[%emt 0:00:02]} 35. Kxe3 {[%emt 0:00:06]} Ke6 {[%emt 0:00:33]} 36. Kd4 {[%emt 0:03:37]} Kd6 {[%emt 0:01:41]} 37. Ke4 {[%emt 0:02:16]} Ke6 {[%emt 0:01:27]} 38. Kd4 {[%emt 0:05:16]} Kd6 {[%emt 0:00:18]} 39. Ke4 {[%emt 0:00:05]} Ke6 {[%emt 0:00:53]} 40. f3 {[%emt 0:00:00]} g6 {[%emt 0:00:00]} 41. Kd4 {[%emt 0:13:02]} Kd6 {[%emt 0:05:00]} 42. f4 {[%emt 0:02:40]} Ke6 {[%emt 0:09:15]} 43. Kc4 {[%emt 0:00:21]} Kd6 {[%emt 0:05:18]} 44. Kd4 {[%emt 0:03:08]} Ke6 {[%emt 0:01:58]} 45. Kc4 {[%emt 0:00:57]} Kd6 {[%emt 0:00:15]} 46. Kd4 {[%emt 0:19:12]} 1/2-1/2

[Event "Romanian Superliga 2024"]
[Site "Mamaia"]
[Date "2024.10.03"]
[Round "6.26"]
[White "Vanczak, Tamas"]
[Black "Kourkoulos-Arditis, Stamatis"]
[Result "0-1"]
[ECO "C17"]
[WhiteElo "2401"]
[BlackElo "2570"]
[Annotator "RC"]
[PlyCount "68"]
[EventDate "2024.09.26"]
[EventType "team-tourn"]
[EventCountry "ROU"]
[SourceTitle "playchess.com"]
[Source "ChessBase"]
[SourceQuality "1"]
[TimeControl "40/5400+30:1800+30"]

1. e4 {[%emt 0:01:54]} e6 {[%emt 0:00:09]} 2. d4 {[%emt 0:00:41]} d5 {[%emt 0:00:04]} 3. Nc3 {[%emt 0:00:04]} Bb4 {[%emt 0:00:04]} 4. e5 {[%emt 0:02:08]} c5 {[%emt 0:00:08]} 5. Bd2 {[%emt 0:00:20]} Ne7 {[%emt 0:00:13]} 6. a3 {[%emt 0:00:23]} Bxc3 {[%emt 0:00:06]} 7. Bxc3 {[%emt 0:00:03]} b6 {[%emt 0:00:11]} 8. Bb5+ {[%emt 0:05:26]} Bd7 {[%emt 0:01:49]} 9. Be2 {[%emt 0:02:25]} Nbc6 {[%emt 0:01:40]} 10. Nf3 {[%emt 0:00:43]} Qc7 {[%emt 0:11:17]} 11. O-O {[%emt 0:07:11]} cxd4 {[%emt 0:08:54]} 12. Nxd4 {[%emt 0:08:32]} Nxe5 {[%emt 0:04:19]} 13. Nb5 {[%emt 0:00:26]} Bxb5 {[%emt 0:00:14]} 14. Bxb5+ {[%emt 0:00:05]} Kf8 {[%emt 0:02:52]} 15. Qd4 {[%emt 0:05:56]} f6 {[%emt 0:00:39]} 16. Qf4 {[%emt 0:10:03]} N7g6 {[%emt 0:10:02]} 17. Qg3 {[%emt 0:02:16]} Kf7 {[%emt 0:00:38]} 18. Rfe1 {[%emt 0:07:26]} Qc5 {[%emt 0:06:32]} 19. Be2 {[%emt 0:01:14]} h5 {[%emt 0:02:36]} 20. h4 {[%emt 0:00:56]} Rad8 {[%emt 0:09:09]} 21. Rad1 {[%emt 0:07:59]} d4 {[%emt 0:08:01]} 22. Bb4 {[%emt 0:01:23]} Qc7 {[%emt 0:03:38]} 23. Bd3 {[%emt 0:10:39]} Qc8 {[%emt 0:00:47]} 24. f4 {[%emt 0:04:29]} Nxd3 {[%emt 0:00:20]} 25. cxd3 {[%emt 0:00:09]} Qd7 {[%emt 0:06:34]} 26. a4 {[%emt 0:09:14]} Qxa4 {[%emt 0:07:12]} 27. Ba3 {[%emt 0:03:13]} Qd7 {[%emt 0:00:38]} 28. Re4 {[%emt 0:00:53]} Rhe8 {[%emt 0:02:21]} 29. Rde1 {[%emt 0:01:09]} Qd5 {[%emt 0:04:18]} 30. Qf2 {[%emt 0:02:57]} Qf5 {[%emt 0:03:24]} 31. Rc1 {[%emt 0:03:26]} Rd7 {[%emt 0:02:03]} 32. Rxd4 {[%emt 0:00:24]} Red8 {[%emt 0:00:04]} 33. Re4 {[%emt 0:01:59]} Rxd3 {[%emt 0:00:22]} 34. Rce1 {[%emt 0:00:18]} Rd1 {[%emt 0:00:09]} 0-1

[Event "Romanian Superliga 2024"]
[Site "Mamaia"]
[Date "2024.10.03"]
[Round "6.27"]
[White "Marin, Mihail"]
[Black "Anton, Teodor"]
[Result "1-0"]
[ECO "A13"]
[WhiteElo "2455"]
[BlackElo "2427"]
[Annotator "TA"]
[PlyCount "91"]
[EventDate "2024.09.26"]
[EventType "team-tourn"]
[EventCountry "ROU"]
[SourceTitle "playchess.com"]
[Source "ChessBase"]
[SourceQuality "1"]
[TimeControl "40/5400+30:1800+30"]

{[%evp 9,91,8,16,17,9,14,4,28,45,40,64,68,75,45,48,40,71,74,74,44,93,64,73,53,66,38,34,42,42,33,26,23,158,158,141,118,156,163,171,191,181,167,172,148,168,96,100,100,139,143,142,139,154,155,220,208,209,201,207,191,304,304,351,181,624,655,1169,1422,1369,1322,869,574,588,586,1433,765,734,613,1820,1338,1542,1313,2339,1944]} 1. c4 {[%emt 0:00:27]} e6 {[%emt 0:00:16]} 2. g3 {[%emt 0:00:06]} d5 {[%emt 0:00:06]} 3. Bg2 {[%emt 0:00:04]} d4 {[%emt 0:01:29]} 4. Nf3 {[%emt 0:00:06]} Nc6 {[%emt 0:00:09]} 5. O-O {[%emt 0:00:07]} Nh6 {[%emt 0:00:21]} 6. e3 {[%emt 0:00:07]} Nf5 {[%emt 0:00:35]} 7. e4 {[%emt 0:00:18]} Nfe7 {[%emt 0:00:05]} 8. e5 {[%emt 0:00:11] The position is equal.} Nf5 {[%emt 0:07:00]} 9. d3 {[%emt 0:00:42]} h5 {[%emt 0:00:13]} 10. h4 {[%emt 0:07:04]} b6 {[%emt 0:25:37]} 11. Nbd2 {[%emt 0:05:46][%cal Bb1d2,Bd2e4,Be4g5,Bg5e4][%mdl 32]} Bb7 {[%emt 0:01:06]} 12. Ne4 {[%emt 0:00:07]} Be7 {[%emt 0:04:38]} 13. a3 {[%emt 0:02:22]} a5 {[%emt 0:01:40]} 14. b3 {[%emt 0:00:46]} Nh6 {[%emt 0:11:44]} (14... Nb8 $14) 15. Re1 {[%emt 0:11:46]} Ng4 {[%emt 0:01:09]} 16. Neg5 {[%emt 0:00:52]} Qd7 {[%emt 0:06:27]} 17. Bf4 {[%emt 0:17:09]} Nd8 {[%emt 0:06:24]} 18. Nh2 {[%emt 0:12:53]} Bxg2 {[%emt 0:05:31]} 19. Kxg2 {[%emt 0:00:11]} f6 {[%emt 0:04:01]} 20. Ne4 {[%emt 0:05:40]} Nf7 {[%emt 0:04:25]} (20... Nxe5 21. Bxe5 fxe5 22. Nf3 $14) (20... fxe5 $2 21. Nxg4 exf4 22. Ne5 $18) (20... f5 $11 21. Ng5 Bxg5 22. Bxg5 O-O) 21. Nxg4 {[%emt 0:12:39]} hxg4 {[%emt 0:00:29]} 22. exf6 {[%emt 0:00:04]} (22. Qxg4 $6 f5 23. Qxg7 fxe4 $11) 22... gxf6 {[%emt 0:00:45] Threatens to win with ...e5.} 23. Qxg4 {[%emt 0:00:09][%cal Oe4f6] Hoping for Nxf6+!} f5 {[%emt 0:01:40]} 24. Qg6 {[%emt 0:00:35]} fxe4 {[%emt 0:04:34]} 25. Rxe4 {[%emt 0:01:41]} Kf8 {[%emt 0:02:08][%cal Oe7h4]} 26. Rxe6 {[%emt 0:02:37] Rae1 is the strong threat.} (26. Qxe6 $6 Qxe6 27. Rxe6 Rc8 $14) 26... Bd6 {[%emt 0:02:06]} 27. Bxd6+ {[%emt 0:02:30]} ({White should try} 27. Bg5 $18 {Strongly threatening Rae1.} Re8 28. Rae1 Rxe6 29. Rxe6) 27... cxd6 $16 {[%emt 0:00:04]} 28. Qe4 {[%emt 0:03:20][%csl LRa8,LRd4] The board is on fire. White is much more active. Black is weak on the light squares} Re8 {[%emt 0:02:09]} 29. Rxe8+ {[%emt 0:00:12]} Qxe8 {[%emt 0:00:03]} 30. Re1 {[%emt 0:05:45]} Qxe4+ {[%emt 0:00:36]} 31. Rxe4 {[%emt 0:00:18][%mdl 4096] Endgame. KRN-KR} Rh5 {[%emt 0:02:31] Wards off f4} (31... Nd8 $16 {might work better.} 32. Kh3 (32. Rxd4 Ke7 $14) 32... Rh6) 32. Rxd4 $18 {[%emt 0:00:28]} Re5 {[%emt 0:00:05]} 33. Kf1 {[%emt 0:04:55] Wards off Re2} a4 {[%emt 0:03:16]} 34. b4 {[%emt 0:00:28]} (34. bxa4 Ra5 35. g4 Rxa4 $16) 34... Ke7 {[%emt 0:00:07]} (34... Re6 $142 35. g4 Ne5) 35. f4 {[%emt 0:00:34]} Re6 {[%emt 0:00:51]} 36. Kf2 {[%emt 0:02:14]} (36. Re4 $142) 36... Nh6 $2 {[%emt 0:00:10]} (36... Nd8) 37. Re4 {[%emt 0:01:34] White is clearly winning.} Nf5 {[%emt 0:00:29]} 38. Rxe6+ {[%emt 0:01:51]} Kxe6 {[%emt 0:00:04] KN-KP} 39. g4 {[%emt 0:00:18]} Nd4 {[%emt 0:01:37]} 40. Ke3 {[%emt 0:00:00]} Nc2+ {[%emt 0:00:00] [#]} 41. Kd2 $1 {[%emt 0:02:18]} Nxa3 {[%emt 0:03:27]} 42. b5 {[%emt 0:08:05]} d5 {[%emt 0:02:16] [#]} 43. c5 $1 {[%emt 0:05:47][%cal Bc4c5,Bc5b6][%mdl 544]} Nxb5 {[%emt 0:17:03]} (43... d4 44. cxb6) 44. cxb6 {[%emt 0:00:08] b7 would now be deadly.} Kd7 {[%emt 0:00:38]} 45. g5 {[%emt 0:05:40]} a3 {[%emt 0:08:52]} 46. Kc1 {[%emt 0:02:00] Weighted Error Value: White=0.22 (precise) /Black=0.36.  Mistake:       	White=2     	Black=5      Inaccurate:     	White=5     	Black=5      OK:         	White=12    	Black=9      Best:        	White=2     	Black=3} 1-0

[Event "Romanian Superliga 2024"]
[Site "Mamaia"]
[Date "2024.10.03"]
[Round "6.28"]
[White "Vajda, Albert"]
[Black "Miron, Lucian-Costin"]
[Result "1/2-1/2"]
[ECO "C28"]
[WhiteElo "2279"]
[BlackElo "2473"]
[Annotator "TA"]
[PlyCount "52"]
[EventDate "2024.09.26"]
[EventType "team-tourn"]
[EventCountry "ROU"]
[SourceTitle "playchess.com"]
[Source "ChessBase"]
[SourceQuality "1"]
[TimeControl "40/5400+30:1800+30"]

{[%evp 10,52,5,14,8,10,7,0,0,10,9,0,0,0,0,0,0,0,0,-14,0,-36,-38,-37,-25,-14,-18,-22,-18,-34,-54,-60,-71,-61,-53,-72,-54,-69,-30,-56,-43,-52,-62,-45,-39]} 1. e4 {[%emt 0:00:13]} e5 {[%emt 0:00:37]} 2. Bc4 {[%emt 0:00:13]} Nc6 {[%emt 0:01:18]} 3. Nc3 {[%emt 0:01:13]} Nf6 {[%emt 0:00:06]} 4. d3 {[%emt 0:00:12]} Na5 {[%emt 0:00:07]} 5. Nge2 {[%emt 0:01:30]} c6 {[%emt 0:03:32]} 6. O-O {[%emt 0:03:44]} Bc5 {[%emt 0:03:47]} 7. a3 {[%emt 0:09:14]} Nxc4 {[%emt 0:00:38]} 8. dxc4 {[%emt 0:00:07]} d6 {[%emt 0:15:24] The position is equal.} 9. Qd3 {[%emt 0:03:44]} Be6 {[%emt 0:01:05]} 10. b3 {[%emt 0:06:41]} a6 {[%emt 0:05:52]} 11. Be3 {[%emt 0:12:58]} Bxe3 {[%emt 0:22:00]} 12. Qxe3 {[%emt 0:01:23]} O-O {[%emt 0:00:07]} 13. Rad1 {[%emt 0:10:05]} Qc7 {[%emt 0:02:42]} 14. a4 {[%emt 0:03:02]} Rab8 {[%emt 0:09:12]} 15. Rd2 {[%emt 0:08:45][%cal Oa4a5]} b5 {[%emt 0:01:15]} 16. axb5 {[%emt 0:00:06]} cxb5 {[%emt 0:01:06]} 17. cxb5 {[%emt 0:00:11]} axb5 {[%emt 0:00:05]} 18. Rfd1 {[%emt 0:02:38]} Rb6 {[%emt 0:07:08]} 19. h3 {[%emt 0:08:45]} b4 {[%emt 0:06:18]} 20. Na4 {[%emt 0:00:22]} Rc6 {[%emt 0:00:05]} 21. Ng3 {[%emt 0:00:20]} Rc8 {[%emt 0:03:37]} 22. Qf3 {[%emt 0:04:53]} Ne8 {[%emt 0:04:39]} 23. Rc1 {[%emt 0:00:59]} Qe7 {[%emt 0:01:49]} 24. Qe3 {[%emt 0:07:22]} R8c7 {[%emt 0:03:07] Black is slightly better.} 25. c4 {[%emt 0:01:33]} bxc3 {[%emt 0:02:56]} 26. Rxc3 {[%emt 0:00:11]} g6 {[%emt 0:01:53] Weighted Error Value: White=0.06 (flawless) /Black=0.06 (flawless) .  Inaccurate:     	White=2     	Black=1      OK:         	White=6     	Black=12     Best:        	White=1     	Black=1} 1/2-1/2

[Event "Romanian Superliga 2024"]
[Site "Mamaia"]
[Date "2024.10.03"]
[Round "6.29"]
[White "Secheres, Adrian-Simion"]
[Black "Tugui, Adrian"]
[Result "1-0"]
[ECO "E90"]
[WhiteElo "2344"]
[BlackElo "2326"]
[Annotator "TA"]
[PlyCount "77"]
[EventDate "2024.09.26"]
[EventType "team-tourn"]
[EventCountry "ROU"]
[SourceTitle "playchess.com"]
[Source "ChessBase"]
[SourceQuality "1"]
[TimeControl "40/5400+30:1800+30"]

{[%evp 16,77,39,44,53,46,41,25,23,22,60,41,62,27,39,38,68,68,72,63,79,64,73,74,75,42,49,52,45,42,58,30,52,39,77,49,99,100,94,96,101,95,102,94,132,133,185,198,197,198,328,317,317,264,334,277,340,339,337,242,242,237,247,247]} 1. d4 {[%emt 0:02:19]} Nf6 {[%emt 0:00:27]} 2. c4 {[%emt 0:00:27]} c5 {[%emt 0:00:24]} 3. d5 {[%emt 0:00:15]} g6 {[%emt 0:01:11]} 4. Nc3 {[%emt 0:00:58]} Bg7 {[%emt 0:01:04]} 5. e4 {[%emt 0:00:46]} d6 {[%emt 0:00:30]} 6. h3 {[%emt 0:00:33]} O-O {[%emt 0:01:30]} 7. Nf3 {[%emt 0:00:43]} e6 {[%emt 0:04:06]} 8. Be2 {[%emt 0:00:11]} exd5 {[%emt 0:01:02]} 9. exd5 {[%emt 0:00:09]} Bf5 {[%emt 0:20:56]} 10. g4 {[%emt 0:00:13]} Be4 {[%emt 0:03:52]} 11. O-O {[%emt 0:00:24]} Bxf3 {[%emt 0:01:32] White has an edge.} 12. Bxf3 {[%emt 0:00:06]} Nbd7 {[%emt 0:31:29]} 13. Bg5 {[%emt 0:04:31][%cal Bc1g5,Bg5h4,Bh4g3][%mdl 32]} a6 {[%emt 0:05:26]} 14. a4 {[%emt 0:05:10]} Re8 {[%emt 0:03:14]} 15. Qd2 {[%emt 0:20:18]} Qe7 {[%emt 0:05:01]} 16. Rae1 {[%emt 0:23:55]} Qf8 {[%emt 0:00:13]} 17. Bh4 {[%emt 0:00:31]} h6 {[%emt 0:08:03]} 18. Bg3 {[%emt 0:01:49]} Rxe1 {[%emt 0:00:26]} 19. Rxe1 {[%emt 0:00:26]} ({Much weaker is} 19. Qxe1 Nh7 $11) 19... Re8 {[%emt 0:00:09]} 20. Rf1 {[%emt 0:04:40]} Ne5 {[%emt 0:00:49]} 21. Be2 {[%emt 0:00:19]} Ned7 {[%emt 0:00:11]} 22. Qc2 {[%emt 0:01:53]} Qe7 {[%emt 0:01:09]} 23. Bd1 {[%emt 0:08:11]} Nh7 {[%emt 0:05:15]} 24. Kg2 {[%emt 0:01:45]} Nhf6 {[%emt 0:02:56]} 25. f3 {[%emt 0:01:18]} b6 {[%emt 0:01:12]} (25... Ne5 $14) 26. Qd2 $16 {[%emt 0:03:48]} Qf8 {[%emt 0:00:42]} 27. Bc2 {[%emt 0:01:22]} Ne5 {[%emt 0:00:30]} 28. b3 {[%emt 0:00:22]} Ned7 {[%emt 0:00:09]} 29. h4 {[%emt 0:05:36] White is more active. Black is weak on the light squares} Nh7 {[%emt 0:00:53]} 30. Ne4 {[%emt 0:01:05]} Be5 {[%emt 0:00:35]} (30... Ne5 $16 31. Bf4 Kh8) 31. f4 $18 {[%emt 0:01:01]} Bd4 {[%emt 0:00:30]} 32. f5 {[%emt 0:01:18] Black must now prevent fxg6.} Rxe4 {[%emt 0:00:30]} (32... g5 $142) 33. Bxe4 {[%emt 0:00:26]} g5 {[%emt 0:00:27] [#]} 34. f6 $1 {[%emt 0:00:19]} Ndxf6 {[%emt 0:00:35]} 35. Bf5 {[%emt 0:00:17]} gxh4 {[%emt 0:00:28]} 36. Bf4 {[%emt 0:04:04]} ({Resist} 36. Bxh4 $6 Qg7 $18) 36... h5 {[%emt 0:00:31]} 37. Bh6 {[%emt 0:03:55] This pair of bishops is nice.} Qe7 {[%emt 0:00:28]} 38. g5 {[%emt 0:02:07][%cal Bg4g5,Bg5g6][%mdl 1056] White has strong compensation.} Ng4 {[%emt 0:00:28] [#] And now ...Ne3+ would win.} 39. g6 {[%emt 0:01:19] Weighted Error Value: White=0.13 (very precise) /Black=0.21 (precise) .  Mistake:       	---       	Black=3      Inaccurate:     	White=4     	Black=4      OK:         	White=16    	Black=6      Best:        	White=2     	---} 1-0